bitfinex/quotes_ETHUSD_20250526
["timestamp","ask_amount","ask_price","bid_price","bid_amount"]
[1748288427450,2.36561334,2536.4,2536.1,9.26953321]
[1748288427642,2.36561334,2536.4,2536.3,4.17949826]
[1748288427841,2.36561334,2536.4,2536.3,12.17949826]
[1748288428388,2.36561334,2536.4,2536.3,12.55683147]
[1748288428888,2.36549564,2536.5,2536.4,8.0]
[1748288429587,2.36549564,2536.5,2536.4,8.39511736]
[1748288429776,2.36549564,2536.5,2536.4,8.77245057]
[1748288431801,2.36546422,2536.5,2536.4,0.37733321]
[1748288432035,3.23255087,2536.5,2536.4,0.37733321]
[1748288432695,3.23255087,2536.5,2536.4,4.55683147]
[1748288433581,3.23255087,2536.5,2536.4,0.37733321]
[1748288434785,3.23255087,2536.5,2536.2,4.17949826]
[1748288434786,2.36565075,2536.3,2536.2,4.17949826]
[1748288436531,2.36565075,2536.3,2536.2,4.55677366]
[1748288445618,0.7941,2536.9,2536.3,8.8237]
[1748288445842,2.36555748,2536.4,2536.3,0.8237]
[1748288445990,2.36555748,2536.4,2536.3,5.00319826]
[1748288447137,2.36551664,2536.5,2536.3,5.00319826]
[1748288447632,2.36551664,2536.5,2536.3,5.38047366]
[1748288449337,2.36551664,2536.5,2536.4,0.3772754]
[1748288450346,2.36551664,2536.5,2536.4,0.84848471]
[1748288451145,2.36551664,2536.5,2536.4,1.24642643]
[1748288452344,2.36526218,2536.8,2536.5,0.8064]
[1748288452543,2.36499802,2537.0,2536.7,4.17949826]
[1748288452747,2.36499802,2537.0,2536.9,4.17949826]
[1748288454149,2.36499802,2537.0,2536.9,4.55677366]
[1748288461125,2.36490481,2537.1,2537.0,8.0]
[1748288463032,2.36490481,2537.1,2537.0,8.3772754]
[1748288464486,1.98697105,2537.8,2537.2,0.8155]
[1748288464790,4.35122355,2537.8,2537.7,4.17949826]
[1748288465979,4.35122355,2537.8,2537.7,4.55677366]
[1748288466186,2.3642525,2537.8,2537.7,0.3772754]
[1748288466384,3.1204525,2537.8,2537.7,0.3772754]
[1748288466546,2.36443883,2537.6,2537.5,12.17949826]
[1748288467884,2.3646252,2537.4,2537.3,4.65070757]
[1748288468263,2.3646252,2537.4,2537.3,4.17949826]
[1748288469532,2.3646252,2537.4,2537.3,4.55521699]
[1748288472019,2.3646252,2537.4,2537.3,0.37571873]
[1748288472186,3.83018672,2537.4,2537.3,0.37571873]
[1748288473601,2.3648116,2537.2,2537.1,4.17949826]
[1748288474633,2.3648116,2537.2,2537.1,4.55559361]
[1748288480053,0.7776,2537.8,2537.2,8.807]
[1748288480227,2.36450205,2537.6,2537.2,0.807]
[1748288480398,2.36440095,2537.7,2537.5,12.17949826]
[1748288480592,2.36440095,2537.7,2537.6,12.98649826]
[1748288481415,2.36440095,2537.7,2537.6,13.36259361]
[1748288482837,2.36440095,2537.7,2537.6,0.37609535]
[1748288483047,3.19720095,2537.7,2537.6,0.37609535]
[1748288483397,3.19720095,2537.7,2537.6,4.17949826]
[1748288484666,3.19720095,2537.7,2537.6,4.55559361]
[1748288486348,2.36440095,2537.7,2537.6,4.55559361]
[1748288493267,3.31444688,2537.7,2537.6,4.55559361]
[1748288493476,4.13514688,2537.7,2537.6,4.55559361]
[1748288498682,4.13514688,2537.7,2537.6,0.37609535]
[1748288499624,2.36453201,2537.5,2537.4,0.37609535]
[1748288500395,3.25094599,2537.5,2537.4,4.55559361]
[1748288500596,2.36453201,2537.5,2537.4,4.55559361]
[1748288500810,2.36453201,2537.5,2537.4,4.17949826]
[1748288502435,2.36453201,2537.5,2537.4,4.55559361]
[1748288503626,2.36453201,2537.5,2537.4,12.55559361]
[1748288504532,2.36438211,2537.7,2537.4,12.55559361]
[1748288504692,2.36438211,2537.7,2537.6,4.17949826]
[1748288506390,2.36438211,2537.7,2537.6,4.55559361]
[1748288509633,2.36438211,2537.7,2537.6,5.34939361]
[1748288509810,2.36438211,2537.7,2537.6,13.34939361]
[1748288510622,2.36345886,2538.7,2537.7,8.0]
[1748288510840,2.36390698,2538.2,2537.7,8.7938]
[1748288510993,2.36407084,2538.0,2537.7,8.7938]
[1748288511390,2.36407084,2538.0,2537.8,1.00433757]
[1748288512105,2.36407084,2538.0,2537.9,4.17949826]
[1748288513109,2.36407084,2538.0,2537.9,5.02577145]
[1748288514832,2.36407084,2538.0,2537.9,5.41946416]
[1748288517038,2.36402344,2538.1,2537.9,9.35746416]
[1748288517196,2.36390686,2538.2,2537.9,9.35746416]
[1748288517197,2.36406619,2538.0,2537.9,9.35746416]
[1748288519838,2.36400804,2538.1,2537.9,9.35746416]
[1748288520134,2.36400804,2538.1,2538.0,4.17949826]
[1748288520740,2.36397305,2538.1,2538.0,5.34679361]
[1748288521250,2.36397305,2538.1,2538.0,13.34679361]
[1748288523508,2.36397305,2538.1,2538.0,12.55559361]
[1748288523842,2.36397305,2538.1,2538.0,0.37609535]
[1748288524826,3.18627305,2538.1,2538.0,0.37609535]
[1748288525029,2.36415934,2537.9,2537.8,4.17949826]
[1748288525227,3.1556113,2537.9,2537.8,4.17949826]
[1748288525959,2.36434566,2537.7,2537.6,4.57406154]
[1748288526166,3.18664566,2537.7,2537.6,4.17949826]
[1748288527242,3.18664566,2537.7,2537.6,4.55532749]
[1748288528164,3.23590398,2537.7,2537.6,0.37582923]
[1748288528369,3.97815342,2537.7,2537.6,0.37582923]
[1748288529688,3.97815342,2537.7,2537.6,4.55532749]
[1748288534188,3.97815342,2537.7,2537.6,0.37582923]
[1748288536996,3.94165342,2537.7,2537.6,0.37582923]
[1748288538473,3.94165342,2537.7,2537.3,4.17949826]
[1748288538474,2.3646252,2537.4,2537.3,4.17949826]
[1748288540581,2.3646252,2537.4,2537.3,4.55538282]
[1748288556507,3.1514252,2537.4,2537.3,0.37588456]
[1748288560188,3.1514252,2537.4,2537.0,4.17949826]
[1748288560189,2.36490481,2537.1,2537.0,4.17949826]
[1748288561718,2.36490481,2537.1,2537.0,4.55643681]
[1748288561920,3.12400481,2537.1,2537.0,0.37693855]
[1748288562131,3.64625586,2537.1,2537.0,0.37693855]
[1748288562619,3.64626165,2537.1,2537.0,0.37693855]
[1748288563035,2.36555748,2536.4,2536.3,8.0]
[1748288563609,2.36565075,2536.3,2536.2,4.6496761]
[1748288563939,2.36565075,2536.3,2536.2,12.6496761]
[1748288564242,2.36565075,2536.3,2536.2,12.55632409]
[1748288567029,2.36551945,2536.5,2536.2,13.25310115]
[1748288567205,3.94,2536.7,2536.4,4.17949826]
[1748288567540,2.36565075,2536.3,2536.2,9.13352583]
[1748288567713,2.36565075,2536.3,2536.2,8.7567]
[1748288568033,2.36560472,2536.4,2536.2,8.7567]
[1748288568409,6.30518571,2536.8,2536.2,8.7567]
[1748288568613,2.36527772,2536.7,2536.6,4.17949826]
[1748288571280,2.36546422,2536.5,2536.4,4.17949826]
[1748288571925,2.36546422,2536.5,2536.4,4.55565284]
[1748288575221,2.36535717,2536.7,2536.4,4.55565284]
[1748288575425,2.36534269,2536.7,2536.6,4.17949826]
[1748288575858,2.36534269,2536.7,2536.6,4.55565284]
[1748288581247,2.36534269,2536.7,2536.6,0.37615458]
[1748288582279,2.36557798,2536.4,2536.2,4.17949826]
[1748288582768,2.36565075,2536.3,2536.2,12.17949826]
[1748288583685,2.36565075,2536.3,2536.2,12.55596445]
[1748288584388,2.36558849,2536.4,2536.2,12.55596445]
[1748288584536,2.36555228,2536.5,2536.3,0.8063]
[1748288584737,2.36555748,2536.4,2536.3,0.8063]
[1748288585055,2.36555748,2536.4,2536.3,4.98579826]
[1748288585734,2.36555748,2536.4,2536.3,5.36226445]
[1748288586534,2.36555748,2536.4,2536.3,13.36226445]
[1748288587135,2.36555748,2536.4,2536.3,13.83244229]
[1748288590079,2.36555748,2536.4,2536.3,13.02614229]
[1748288590288,2.36555748,2536.4,2536.3,12.55596445]
[1748288591495,0.8221,2536.9,2536.3,12.55596445]
[1748288591793,2.36509125,2536.9,2536.8,4.17949826]
[1748288592890,2.36509125,2536.9,2536.8,4.55596445]
[1748288594593,3.62180232,2536.9,2536.8,0.37646619]
[1748288600788,2.36509125,2536.9,2536.8,0.37646619]
[1748288608233,2.3650195,2537.0,2536.8,1.13626619]
[1748288608439,2.36490501,2537.1,2536.9,4.17949826]
[1748288608672,2.36505035,2537.0,2536.9,4.17949826]
[1748288609451,2.36505035,2537.0,2536.9,5.02706975]
[1748288609762,2.36505035,2537.0,2536.9,13.02706975]
[1748288609915,1.98697105,2537.5,2537.0,0.7598]
[1748288610114,1.98697105,2537.5,2537.4,12.93929826]
[1748288610856,1.98697105,2537.5,2537.4,13.31576445]
[1748288611839,1.98697105,2537.5,2537.4,19.44791842]
[1748288612171,1.98697105,2537.5,2537.4,23.38896043]
[1748288612453,2.36427796,2537.8,2537.5,8.0]
[1748288612662,2.36427796,2537.8,2537.7,4.17949826]
[1748288612955,2.36406619,2538.0,2537.8,0.823]
[1748288613129,2.36406619,2538.0,2537.9,12.17949826]
[1748288613651,32.08298105,2538.1,2538.0,8.0]
[1748288614752,29.719008,2538.1,2538.0,0.823]
[1748288615318,29.719008,2538.1,2538.0,1.19946619]
[1748288617775,32.08298105,2538.1,2538.0,0.37646619]
[1748288617944,32.08298105,2538.1,2538.0,16.65196445]
[1748288618438,32.08298105,2538.1,2538.0,17.46076445]
[1748288618841,29.719008,2538.1,2538.0,17.46076445]
[1748288620539,29.719008,2538.1,2538.0,21.39876445]
[1748288626845,29.719008,2538.1,2538.0,30.60887477]
[1748288627355,18.29448232,2538.1,2538.0,30.60887477]
[1748288628767,18.29448232,2538.1,2538.0,26.66876445]
[1748288628968,18.29448232,2538.1,2538.0,30.60887477]
[1748288630171,18.29448232,2538.1,2538.0,22.57487477]
[1748288630385,18.29448232,2538.1,2538.0,30.61587477]
[1748288631274,18.29448232,2538.1,2538.0,22.57487477]
[1748288631470,18.29448232,2538.1,2538.0,30.61587477]
[1748288631981,17.53561433,2538.1,2538.0,30.61587477]
[1748288632173,16.33561433,2538.1,2538.0,30.61587477]
[1748288633263,16.33561433,2538.1,2538.0,31.08482909]
[1748288633460,16.33561433,2538.1,2538.0,27.14471877]
[1748288634490,16.33561433,2538.1,2538.0,26.67576445]
[1748288634664,16.33561433,2538.1,2538.0,30.61587477]
[1748288638951,16.33561433,2538.1,2538.0,31.24411699]
[1748288640187,16.33561433,2538.1,2538.0,30.61587477]
[1748288640988,16.33561433,2538.1,2538.0,26.67576445]
[1748288641206,16.33561433,2538.1,2538.0,25.31696445]
[1748288642602,16.33561433,2538.1,2538.0,30.59097477]
[1748288642799,14.14801433,2538.1,2538.0,30.59097477]
[1748288643504,16.51198738,2538.1,2538.0,17.27596445]
[1748288643660,17.26708738,2538.1,2538.0,17.31696445]
[1748288643862,17.26708738,2538.1,2538.0,25.31696445]
[1748288644160,17.26708738,2538.1,2538.0,17.31696445]
[1748288644401,17.26708738,2538.1,2538.0,25.31696445]
[1748288645858,17.26708738,2538.1,2538.0,21.37996445]
[1748288646074,16.51198738,2538.1,2538.0,21.37996445]
[1748288648614,14.14801433,2538.1,2538.0,21.37996445]
[1748288648815,16.51198738,2538.1,2538.0,21.37996445]
[1748288648985,16.51198738,2538.1,2538.0,16.65996445]
[1748288649562,16.51198738,2538.1,2538.0,17.28617762]
[1748288650784,16.51198738,2538.1,2538.0,16.65996445]
[1748288654219,14.14801433,2538.1,2538.0,16.65996445]
[1748288654390,13.11381433,2538.1,2538.0,21.98217477]
[1748288654895,13.11381433,2538.1,2538.0,26.70217477]
[1748288657185,12.40400828,2538.1,2538.0,26.70217477]
[1748288657391,2.36341597,2538.7,2538.4,0.7773]
[1748288657592,2.36341597,2538.7,2538.6,4.17949826]
[1748288657791,2.36341597,2538.7,2538.6,12.17949826]
[1748288658122,2.36341597,2538.7,2538.6,13.02535875]
[1748288660126,2.36341597,2538.7,2538.6,13.22562428]
[1748288667336,2.36341597,2538.7,2538.6,17.31962428]
[1748288673050,2.36341597,2538.7,2538.6,21.05635875]
[1748288673623,2.36341597,2538.7,2538.6,20.58696445]
[1748288674920,2.36341597,2538.7,2538.6,21.05635875]
[1748288676976,2.3633414,2538.8,2538.6,21.05635875]
[1748288677380,2.3633414,2538.8,2538.7,0.37646619]
[1748288678275,2.46327875,2538.9,2538.7,0.37646619]
[1748288678479,0.1,2538.9,2538.8,12.17949826]
[1748288678683,2.46322816,2538.9,2538.8,16.11549826]
[1748288679543,0.1,2538.9,2538.8,16.11549826]
[1748288679742,0.1,2538.9,2538.8,16.49196445]
[1748288681697,0.1,2538.9,2538.8,13.18182352]
[1748288689799,0.1,2538.9,2538.8,22.06779053]
[1748288690019,0.1,2538.9,2538.8,22.61779053]
[1748288690497,0.1,2538.9,2538.8,27.33779053]
[1748288690667,0.1,2538.9,2538.8,26.71193146]
[1748288692104,0.1,2538.9,2538.8,18.59356445]
[1748288693308,0.1,2538.9,2538.8,22.77306271]
[1748288693905,0.1,2538.9,2538.8,26.71193146]
[1748288694480,0.1,2538.9,2538.8,22.77306271]
[1748288695076,0.1,2538.9,2538.8,18.59356445]
[1748288695287,0.1,2538.9,2538.8,22.77306271]
[1748288696078,0.1,2538.9,2538.8,18.59356445]
[1748288700518,0.1,2538.9,2538.8,22.77306271]
[1748288701495,0.1,2538.9,2538.8,18.59356445]
[1748288701816,2.46322816,2538.9,2538.8,17.27596445]
[1748288702221,3.26112816,2538.9,2538.8,17.27596445]
[1748288702531,3.26112816,2538.9,2538.8,9.00203799]
[1748288702717,3.82355561,2538.9,2538.8,9.00203799]
[1748288702891,3.82355561,2538.9,2538.8,1.00203799]
[1748288703921,3.8727936,2538.9,2538.8,0.37646619]
[1748288704217,3.82355561,2538.9,2538.8,0.37646619]
[1748288704620,4.19165821,2538.9,2538.8,0.37646619]
[1748288705229,0.8304,2538.6,2538.3,8.46925651]
[1748288705794,3.19409366,2538.4,2538.3,0.46925651]
[1748288707026,3.19409366,2538.4,2538.3,0.3752323]
[1748288710731,2.36366136,2538.5,2538.3,0.3752323]
[1748288711034,2.36363924,2538.5,2538.4,12.17949826]
[1748288712332,2.36363924,2538.5,2538.4,12.55473056]
[1748288714649,0.7662,2538.8,2538.5,8.0]
[1748288714947,2.36350744,2538.6,2538.5,8.0]
[1748288715755,2.36350744,2538.6,2538.5,8.3752323]
[1748288716134,2.36350744,2538.6,2538.5,12.55473056]
[1748288729082,2.36350744,2538.6,2538.5,13.02398707]
[1748288729696,2.36337577,2538.8,2538.5,13.02398707]
[1748288729858,0.1,2538.9,2538.7,4.17949826]
[1748288730182,2.46322816,2538.9,2538.8,8.024]
[1748288730760,2.46322816,2538.9,2538.8,8.3992323]
[1748288731310,0.1,2538.9,2538.8,16.3992323]
[1748288731443,0.03310417,2538.9,2538.8,25.86809931]
[1748288732067,0.03310417,2538.9,2538.8,21.92923056]
[1748288732392,0.03310417,2538.9,2538.8,17.7497323]
[1748288733194,2.39633233,2538.9,2538.8,8.3752323]
[1748288737674,0.03310417,2538.9,2538.8,8.3752323]
[1748288737877,0.03310417,2538.9,2538.8,9.1620323]
[1748288739265,0.03310417,2538.9,2538.8,9.78679724]
[1748288740762,0.03310417,2538.9,2538.8,14.50679724]
[1748288741606,0.03310417,2538.9,2538.8,18.6862955]
[1748288741808,0.03310417,2538.9,2538.8,23.17516425]
[1748288742165,0.03310417,2538.9,2538.8,19.2362955]
[1748288742986,0.03310417,2538.9,2538.8,18.61153056]
[1748288746976,0.03310417,2538.9,2538.8,19.23614838]
[1748288748114,0.03310417,2538.9,2538.8,18.61153056]
[1748288748600,2.36280816,2539.4,2539.0,3.9385573]
[1748288748786,2.3627135,2539.5,2539.3,12.17949826]
[1748288748991,2.36266981,2539.5,2539.4,12.17949826]
[1748288749881,2.36266981,2539.5,2539.4,12.55473056]
[1748288750386,3.67559951,2539.5,2539.4,0.3752323]
[1748288755396,3.12666981,2539.5,2539.4,0.3752323]
[1748288760246,3.12666981,2539.5,2539.4,4.55473056]
[1748288761542,3.12666981,2539.5,2539.4,0.3752323]
[1748288762034,3.12666981,2539.5,2539.2,12.64769692]
[1748288762035,2.3628559,2539.3,2539.2,12.17949826]
[1748288762214,2.3628559,2539.3,2539.2,12.64856009]
[1748288763008,2.36281835,2539.4,2539.2,13.42746009]
[1748288763438,2.36281835,2539.4,2539.3,12.7802656]
[1748288764109,2.36281835,2539.4,2539.3,12.97948276]
[1748288764544,2.36247684,2539.8,2539.5,0.7789]
[1748288764750,2.36197475,2540.3,2539.8,12.71621789]
[1748288764955,2.36197475,2540.3,2540.2,4.17949826]
[1748288764956,2.36192575,2540.3,2540.2,4.17949826]
[1748288765240,2.36127808,2541.0,2540.2,4.17949826]
[1748288765241,3.02848364,2540.5,2540.3,8.0]
[1748288765406,0.6667,2540.5,2540.4,12.17949826]
[1748288765604,3.02843981,2540.5,2540.4,12.17949826]
[1748288767241,3.02843981,2540.5,2540.4,12.55470203]
[1748288768147,0.6667,2540.5,2540.4,16.49109]
[1748288768442,0.6667,2540.5,2540.4,17.30299]
[1748288768627,0.6667,2540.5,2540.4,13.36660203]
[1748288769349,0.6667,2540.5,2540.4,13.91660203]
[1748288769639,0.6667,2540.5,2540.4,18.32044444]
[1748288769840,0.6667,2540.5,2540.4,14.38405647]
[1748288770765,3.17644638,2541.5,2540.7,1.3619]
[1748288771051,5.53725692,2541.5,2541.4,4.17949826]
[1748288772407,2.36081054,2541.5,2541.4,4.17949826]
[1748288775917,0.7885,2541.4,2541.1,8.0]
[1748288776145,2.36108924,2541.2,2541.1,8.0]
[1748288776966,2.36062477,2541.7,2541.1,12.17949826]
[1748288777126,2.36085083,2541.5,2541.2,8.0]
[1748288777324,2.36108924,2541.2,2541.1,12.17949826]
[1748288777750,2.36108924,2541.2,2541.1,12.93919826]
[1748288778130,2.36108924,2541.2,2541.1,12.17949826]
[1748288778336,2.36108924,2541.2,2541.1,20.19549826]
[1748288779769,2.36102048,2541.3,2541.2,8.0]
[1748288785068,2.36108924,2541.2,2541.1,12.17949826]
[1748288785253,2.36108924,2541.2,2541.1,20.19449826]
[1748288788666,2.36146095,2540.8,2540.7,8.015]
[1748288788831,2.36146095,2540.8,2540.7,12.17949826]
[1748288789045,2.36146095,2540.8,2540.7,4.17949826]
[1748288789472,2.36146095,2540.8,2540.7,12.17949826]
[1748288790481,2.36146095,2540.8,2540.7,12.55198759]
[1748288790652,2.36146095,2540.8,2540.7,0.37248933]
[1748288791058,2.36146095,2540.8,2540.7,4.55198759]
[1748288791878,3.6701259,2540.8,2540.7,0.37248933]
[1748288792283,2.36183278,2540.4,2540.3,12.56611313]
[1748288793785,2.36183278,2540.4,2540.3,12.93925567]
[1748288793990,2.36178651,2540.5,2540.3,12.93925567]
[1748288794283,2.36183278,2540.4,2540.3,8.75975741]
[1748288795459,2.36183278,2540.4,2540.3,12.93925567]
[1748288800572,2.36169941,2540.6,2540.3,13.69265567]
[1748288800787,0.7613,2541.0,2540.6,8.0]
[1748288801097,2.3615539,2540.7,2540.6,8.0]
[1748288801864,2.36173981,2540.5,2540.4,8.0]
[1748288802064,2.36173981,2540.5,2540.4,12.17949826]
[1748288802489,2.36173981,2540.5,2540.4,0.37314254]
[1748288802710,3.90766762,2540.5,2540.4,0.37314254]
[1748288803867,2.36183278,2540.4,2540.3,4.72]
[1748288805799,2.36183278,2540.4,2540.2,12.58153598]
[1748288805800,2.36192575,2540.3,2540.2,12.58153598]
[1748288807000,2.36192575,2540.3,2540.2,12.95518736]
[1748288810717,0.7613,2540.5,2540.2,12.95518736]
[1748288810892,2.36178452,2540.5,2540.4,4.17949826]
[1748288812194,2.36178452,2540.5,2540.4,4.55314964]
[1748288819794,2.36178452,2540.5,2540.4,0.37365138]
[1748288819999,3.13878452,2540.5,2540.4,0.37365138]
[1748288820247,3.68883023,2540.5,2540.4,0.37365138]
[1748288821196,4.05712878,2540.5,2540.4,0.37365138]
[1748288827452,3.68883023,2540.5,2540.4,0.37365138]
[1748288828756,3.73804421,2540.5,2540.4,0.37365138]
[1748288828921,3.68883023,2540.5,2540.4,0.37365138]
[1748288829122,4.05716915,2540.5,2540.4,0.37365138]
[1748288829535,7.99116915,2540.5,2540.4,0.37365138]
[1748288829833,2.36192575,2540.3,2540.2,4.17949826]
[1748288830514,6.29592575,2540.3,2540.2,4.17949826]
[1748288831117,6.29592575,2540.3,2540.2,4.55314964]
[1748288831514,2.36192575,2540.3,2540.2,4.55314964]
[1748288834162,0.8156,2541.0,2540.3,8.7787]
[1748288834349,3.17693639,2541.0,2540.9,4.17949826]
[1748288834731,2.72962035,2541.0,2540.9,4.17949826]
[1748288835562,2.36136801,2540.9,2540.7,4.17949826]
[1748288835927,2.36146095,2540.8,2540.7,4.17949826]
[1748288837161,2.36146095,2540.8,2540.7,4.55395832]
[1748288847491,2.36136801,2540.9,2540.7,5.32425832]
[1748288847791,2.36108874,2541.3,2540.8,11.93570081]
[1748288847993,2.36108874,2541.3,2541.2,4.17949826]
[1748288855605,2.36108874,2541.3,2541.2,4.55395832]
[1748288867329,2.36108874,2541.3,2541.2,12.55395832]
[1748288873889,3.2263767,2541.3,2541.2,0.37446006]
[1748288874087,4.0664616,2541.3,2541.2,0.37446006]
[1748288874246,4.01727364,2541.3,2541.2,0.37446006]
[1748288874901,2.36146095,2540.8,2540.7,12.17949826]
[1748288875198,2.36146095,2540.8,2540.7,4.17949826]
[1748288875548,2.36146095,2540.8,2540.7,4.55397671]
[1748288879056,2.36146095,2540.8,2540.7,0.37447845]
[1748288879388,3.19246095,2540.8,2540.7,0.37447845]
[1748288879960,4.1411459,2540.8,2540.7,0.37447845]
[1748288880357,2.36173981,2540.5,2540.4,4.083]
[1748288881980,2.36173981,2540.5,2540.4,4.4572115]
[1748288882190,3.19033981,2540.5,2540.4,4.4572115]
[1748288882363,3.19033981,2540.5,2540.4,0.3742115]
[1748288882565,4.37991674,2540.5,2540.4,0.3742115]
[1748288883243,2.36201873,2540.2,2540.1,4.57382355]
[1748288884652,2.36201873,2540.2,2540.1,4.94752802]
[1748288884995,2.36201873,2540.2,2540.1,4.55320273]
[1748288889199,2.36195562,2540.3,2540.1,4.95150297]
[1748288890059,2.36184613,2540.4,2540.1,4.95150297]
[1748288890060,2.36201873,2540.2,2540.1,4.95150297]
[1748288890260,2.36197083,2540.3,2540.1,4.95150297]
[1748288890683,2.36197083,2540.3,2540.2,8.0]
[1748288890883,2.36197083,2540.3,2540.2,8.37370447]
[1748288896918,3.16602009,2541.0,2540.3,0.8087]
[1748288897083,2.36136801,2540.9,2540.6,4.17949826]
[1748288897429,2.36173981,2540.5,2540.4,4.55320273]
[1748288897615,2.36173981,2540.5,2540.4,12.55320273]
[1748288900787,2.36173981,2540.5,2540.4,0.37370447]
[1748288903996,2.36173981,2540.5,2540.4,4.55320273]
[1748288919085,2.36173981,2540.5,2540.4,5.01822475]
[1748288923480,2.36173981,2540.5,2540.4,4.55320273]
[1748288926170,2.36173981,2540.5,2540.4,0.37370447]
[1748288926171,8.0028871,2540.5,2540.4,0.37370447]
[1748288926375,7.08793981,2540.5,2540.4,0.37370447]
[1748288926574,7.45658822,2540.5,2540.4,0.37370447]
[1748288928800,8.00658822,2540.5,2540.4,0.37370447]
[1748288929017,8.00658822,2540.5,2540.1,0.46502202]
[1748288929018,3.15421873,2540.2,2540.1,0.46502202]
[1748288929192,7.08821873,2540.2,2540.1,0.46502202]
[1748288930015,0.7922,2540.0,2539.3,4.083]
[1748288930325,2.36276285,2539.4,2539.3,4.083]
[1748288930481,2.36276285,2539.4,2539.3,12.083]
[1748288931004,3.30792783,2539.4,2539.3,12.083]
[1748288932822,2.36276285,2539.4,2539.3,12.083]
[1748288933320,2.36276285,2539.4,2539.3,4.083]
[1748288933815,2.36294896,2539.2,2539.1,0.1]
[1748288934376,6.29694896,2539.2,2539.1,0.1]
[1748288934577,7.39920745,2539.2,2539.1,0.1]
[1748288936912,0.7988,2539.7,2539.1,12.27949826]
[1748288937111,2.36248375,2539.7,2539.6,4.17949826]
[1748288941328,2.36248375,2539.7,2539.6,12.17949826]
[1748288941647,2.36248375,2539.7,2539.6,12.5528158]
[1748288946516,2.3623379,2539.9,2539.6,13.3136158]
[1748288946716,0.7581,2540.5,2539.9,0.7549]
[1748288946915,6.29683278,2540.4,2540.3,4.17949826]
[1748288947533,2.36201873,2540.2,2540.1,4.17949826]
[1748288947857,2.36201873,2540.2,2539.9,0.7549]
[1748288947858,2.36220472,2540.0,2539.9,12.93439826]
[1748288949252,2.36220472,2540.0,2539.9,13.30790192]
[1748288954375,2.36206741,2540.2,2539.9,14.00467898]
[1748288954662,2.36192575,2540.3,2540.2,4.17949826]
[1748288956022,2.36192575,2540.3,2540.2,4.55300192]
[1748288956936,2.36192575,2540.3,2540.2,0.37350366]
[1748288957283,2.36201873,2540.2,2540.1,0.37350366]
[1748288958338,2.36211172,2540.1,2540.0,12.17949826]
[1748288958672,2.36211172,2540.1,2540.0,4.17949826]
[1748288958855,2.36211172,2540.1,2539.9,4.72]
[1748288958856,2.36220472,2540.0,2539.9,4.72]
[1748288959689,2.36220472,2540.0,2539.9,5.09358491]
[1748288962479,2.36220472,2540.0,2539.9,0.37358491]
[1748288967785,0.7893,2540.5,2539.9,13.36048317]
[1748288967959,2.36173981,2540.5,2540.4,4.17949826]
[1748288968161,2.36192575,2540.3,2540.2,4.17949826]
[1748288969901,2.36192575,2540.3,2540.2,4.95220653]
[1748288971998,3.12452575,2540.3,2540.2,0.37358491]
[1748288972161,3.59690266,2540.3,2540.2,0.37358491]
[1748288973110,2.36201873,2540.2,2540.1,0.37358491]
[1748288989943,6.29701873,2540.2,2540.1,0.37358491]
[1748288999729,6.66561494,2540.2,2540.1,0.37358491]
[1748289001958,2.73061494,2540.2,2540.1,0.37358491]
[1748289002265,6.66561494,2540.2,2540.1,0.37358491]
[1748289003159,6.29701873,2540.2,2540.1,0.37358491]
[1748289005468,2.36201873,2540.2,2540.1,0.37358491]
[1748289005763,2.36201873,2540.2,2540.1,9.15868491]
[1748289010472,2.36201873,2540.2,2540.1,9.15868491]
[1748289010630,2.76977584,2541.0,2540.1,13.09547412]
[1748289010952,2.36165957,2540.6,2540.3,8.0]
[1748289011153,2.36165957,2540.6,2540.4,0.7548]
[1748289011354,2.36173981,2540.5,2540.4,1.12838491]
[1748289012053,2.36173981,2540.5,2540.4,5.30788317]
[1748289012770,2.36158392,2540.7,2540.5,8.0]
[1748289012960,2.36158392,2540.7,2540.6,12.17949826]
[1748289013663,2.36158392,2540.7,2540.6,13.02182972]
[1748289014166,2.36158392,2540.7,2540.6,13.41012652]
[1748289014782,2.36158392,2540.7,2540.6,12.94137997]
[1748289019589,0.7728,2541.4,2540.7,8.7787]
[1748289019751,2.36104571,2541.3,2540.8,0.7787]
[1748289019957,2.36104571,2541.3,2541.2,4.17949826]
[1748289020488,2.36104571,2541.3,2541.2,4.95819826]
[1748289021259,2.36104571,2541.3,2541.2,5.33178317]
[1748289022500,2.36104571,2541.3,2541.2,4.55308317]
[1748289025067,2.36091901,2541.4,2541.2,4.55308317]
[1748289025266,3.933,2541.7,2541.2,4.55308317]
[1748289025604,3.933,2541.7,2541.4,4.17949826]
[1748289025605,2.36081054,2541.5,2541.4,4.17949826]
[1748289026193,2.36081054,2541.5,2541.4,12.17949826]
[1748289031407,2.36081054,2541.5,2541.4,12.93779826]
[1748289032316,2.36078678,2541.6,2541.5,8.0]
[1748289032611,2.36078678,2541.6,2541.4,4.93779826]
[1748289032812,2.36078678,2541.6,2541.4,5.31148358]
[1748289033783,2.36081054,2541.5,2541.4,5.31148358]
[1748289033990,2.36081054,2541.5,2541.4,4.93779826]
[1748289035118,2.36081054,2541.5,2541.4,5.31140384]
[1748289036914,2.36081054,2541.5,2541.4,0.37360558]
[1748289037584,2.36090343,2541.4,2541.3,4.72]
[1748289038190,2.36090343,2541.4,2541.3,12.72]
[1748289038993,2.36090343,2541.4,2541.3,13.09382722]
[1748289042303,2.36090343,2541.4,2541.3,8.37382722]
[1748289043825,2.36085177,2541.5,2541.4,8.0]
[1748289044027,2.36081054,2541.5,2541.4,4.17949826]
[1748289044815,2.36081054,2541.5,2541.4,4.55332548]
[1748289045950,3.11981054,2541.5,2541.4,0.37382722]
[1748289049441,2.36081054,2541.5,2541.4,0.37382722]
[1748289055851,3.17211054,2541.5,2541.4,0.37382722]
[1748289057470,4.11859386,2541.5,2541.4,0.37382722]
[1748289058166,2.36090343,2541.4,2541.2,0.37382722]
[1748289058361,6.29299634,2541.3,2541.2,0.37382722]
[1748289059225,6.66120121,2541.3,2541.2,0.37382722]
[1748289059432,2.36118216,2541.1,2541.0,0.37382722]
[1748289059824,3.16628216,2541.1,2541.0,0.37382722]
[1748289060023,4.75334637,2541.1,2541.0,0.37382722]
[1748289060950,2.36127508,2541.0,2540.9,0.37382722]
[1748289062275,2.36146095,2540.8,2540.7,0.37382722]
[1748289064076,3.11636095,2540.8,2540.7,0.37382722]
[1748289067921,3.16556122,2540.8,2540.7,0.37382722]
[1748289068123,4.29848338,2540.8,2540.7,0.37382722]
[1748289068681,4.66575276,2540.8,2540.7,0.37382722]
[1748289069659,2.36173981,2540.5,2540.4,4.08]
[1748289070339,2.3615539,2540.7,2540.4,16.25949826]
[1748289070540,2.3615539,2540.7,2540.6,13.00199826]
[1748289071659,2.3615539,2540.7,2540.6,8.0]
[1748289071864,2.3615539,2540.7,2540.6,8.37422384]
[1748289073750,2.3615539,2540.7,2540.6,0.37422384]
[1748289073950,3.1386539,2540.7,2540.6,0.37422384]